[Event "Titled Tuesday Blitz October 11 Early 2022"]
[White "Turayev, Shahruh"]
[Black "Mihailidis, Anastasios"]
[WhiteFideId "14003856"]
[BlackFideId "4205588"]
[WhiteElo "2624"]
[BlackElo "2312"]
[Result "1-0"]
[Round "04"]
[TimeControl "180+1"]
[Date "2022.10.12"]
[WhiteClock "0:01:57"]
[BlackClock "0:00:42"]

1. e4 {[%clk 0:03:00]}  c5 {[%clk 0:02:58]} 2. Nc3 {[%clk 0:03:01]}  Nc6 {[%clk 0:02:57]} 3. Bb5 {[%clk 0:03:02]}  Nd4 {[%clk 0:02:56]} 4. Bc4 {[%clk 0:03:02]}  e6 {[%clk 0:02:56]} 5. Nge2 {[%clk 0:03:03]}  Nxe2 {[%clk 0:02:55]} 6. Qxe2 {[%clk 0:03:03]}  d6 {[%clk 0:02:54]} 7. O-O {[%clk 0:03:04]}  Nf6 {[%clk 0:02:54]} 8. d3 {[%clk 0:03:04]}  Be7 {[%clk 0:02:53]} 9. f4 {[%clk 0:03:05]}  O-O {[%clk 0:02:47]} 10. f5 {[%clk 0:03:05]}  d5 {[%clk 0:02:44]} 11. Bb3 {[%clk 0:03:05]}  dxe4 {[%clk 0:02:42]} 12. dxe4 {[%clk 0:03:05]}  exf5 {[%clk 0:02:41]} 13. exf5 {[%clk 0:03:06]}  a6 {[%clk 0:02:18]} 14. a4 {[%clk 0:03:06]}  b6 {[%clk 0:02:15]} 15. Bg5 {[%clk 0:03:05]}  Bb7 {[%clk 0:02:00]} 16. Rae1 {[%clk 0:03:05]}  Bd6 {[%clk 0:01:38]} 17. Nd5 {[%clk 0:02:52]}  Bxd5 {[%clk 0:01:35]} 18. Bxd5 {[%clk 0:02:53]}  Bxh2+ {[%clk 0:01:31]} 19. Kxh2 {[%clk 0:02:52]}  Qd6+ {[%clk 0:01:28]} 20. Kh1 {[%clk 0:02:36]}  Nxd5 {[%clk 0:01:02]} 21. f6 {[%clk 0:02:36]}  Rfe8 {[%clk 0:00:57]} 22. Qxe8+ {[%clk 0:02:34]}  Rxe8 {[%clk 0:00:53]} 23. Rxe8+ {[%clk 0:02:35]}  Qf8 {[%clk 0:00:53]} 24. Rfe1 {[%clk 0:02:21]}  gxf6 {[%clk 0:00:49]} 25. Bh6 {[%clk 0:02:20]}  Ne7 {[%clk 0:00:42]} 26. R1xe7 {[%clk 0:01:57]} 1-0


[Site "https://www.chess.com"]

[Event "Titled Tuesday Blitz October 11 Early 2022"]
[White "Tworuszka, Michal"]
[Black "Shaik Sumer Arsh"]
[WhiteFideId "1117858"]
[BlackFideId "45020000"]
[WhiteElo "2333"]
[BlackElo "2190"]
[Result "0-1"]
[Round "04"]
[TimeControl "180+1"]
[Date "2022.10.12"]
[WhiteClock "0:00:02"]
[BlackClock "0:00:17"]

1. d4 {[%clk 0:03:00]}  Nf6 {[%clk 0:02:59]} 2. c4 {[%clk 0:03:00]}  e6 {[%clk 0:02:59]} 3. Nc3 {[%clk 0:03:00]}  Bb4 {[%clk 0:03:00]} 4. f3 {[%clk 0:02:57]}  d5 {[%clk 0:02:59]} 5. a3 {[%clk 0:02:56]}  Bxc3+ {[%clk 0:02:58]} 6. bxc3 {[%clk 0:02:57]}  c5 {[%clk 0:02:56]} 7. cxd5 {[%clk 0:02:58]}  Nxd5 {[%clk 0:02:56]} 8. dxc5 {[%clk 0:02:58]}  Qa5 {[%clk 0:02:54]} 9. e4 {[%clk 0:02:58]}  Nf6 {[%clk 0:02:54]} 10. Qd4 {[%clk 0:02:50]}  O-O {[%clk 0:02:49]} 11. Qb4 {[%clk 0:02:50]}  Qc7 {[%clk 0:02:48]} 12. a4 {[%clk 0:02:47]}  Na6 {[%clk 0:02:30]} 13. Qa3 {[%clk 0:02:44]}  Nxc5 {[%clk 0:02:07]} 14. Be3 {[%clk 0:02:42]}  Nfd7 {[%clk 0:02:02]} 15. Nh3 {[%clk 0:02:01]}  b6 {[%clk 0:01:53]} 16. Nf2 {[%clk 0:01:55]}  Ba6 {[%clk 0:01:48]} 17. Bxa6 {[%clk 0:01:44]}  Nxa6 {[%clk 0:01:49]} 18. O-O {[%clk 0:01:43]}  Rac8 {[%clk 0:01:46]} 19. Rac1 {[%clk 0:01:16]}  Ne5 {[%clk 0:01:43]} 20. Qa2 {[%clk 0:00:51]}  Nc4 {[%clk 0:01:38]} 21. Rfe1 {[%clk 0:00:32]}  Rfd8 {[%clk 0:01:12]} 22. Rcd1 {[%clk 0:00:27]}  Nxe3 {[%clk 0:00:38]} 23. Rxe3 {[%clk 0:00:24]}  Rxd1+ {[%clk 0:00:34]} 24. Nxd1 {[%clk 0:00:25]}  Qc5 {[%clk 0:00:34]} 25. Qe2 {[%clk 0:00:14]}  Rd8 {[%clk 0:00:27]} 26. Kf2 {[%clk 0:00:09]}  Nb8 {[%clk 0:00:22]} 27. Nb2 {[%clk 0:00:02]}  Nc6 {[%clk 0:00:22]} 28. Kf1 {[%clk 0:00:01]}  Ne5 {[%clk 0:00:19]} 29. h3 {[%clk 0:00:01]}  Ng6 {[%clk 0:00:16]} 30. Rd3 {[%clk 0:00:01]}  Rc8 {[%clk 0:00:16]} 31. Qd2 {[%clk 0:00:01]}  h6 {[%clk 0:00:15]} 32. Rd8+ {[%clk 0:00:01]}  Rxd8 {[%clk 0:00:16]} 33. Qxd8+ {[%clk 0:00:02]}  Kh7 {[%clk 0:00:17]} 34. Qd3 {[%clk 0:00:02]}  Nf4 {[%clk 0:00:17]} 35. Qd2 {[%clk 0:00:03]}  e5 {[%clk 0:00:15]} 36. Nd3 {[%clk 0:00:03]}  Qc4 {[%clk 0:00:16]} 37. Kf2 {[%clk 0:00:01]}  Nxd3+ {[%clk 0:00:16]} 38. Ke3 {[%clk 0:00:02]}  Nf4 {[%clk 0:00:17]} 39. Qd7 {[%clk 0:00:02]}  Qe2# {[%clk 0:00:17]} 0-1


[Site "https://www.chess.com"]

[Event "Titled Tuesday Blitz October 11 Early 2022"]
[White "Ulziikhishigjargal, Ochirkhuyag"]
[Black "Ziatdinov, Raset"]
[WhiteFideId "4903188"]
[BlackFideId "2015323"]
[WhiteElo "1920"]
[BlackElo "2220"]
[Result "1-0"]
[Round "04"]
[TimeControl "180+1"]
[Date "2022.10.12"]
[WhiteClock "0:00:57"]
[BlackClock "0:00:14"]

1. c4 {[%clk 0:02:51]}  Nf6 {[%clk 0:02:59]} 2. Nc3 {[%clk 0:02:51]}  g6 {[%clk 0:02:58]} 3. g3 {[%clk 0:02:51]}  Bg7 {[%clk 0:02:57]} 4. Bg2 {[%clk 0:02:51]}  O-O {[%clk 0:02:55]} 5. Nf3 {[%clk 0:02:51]}  d6 {[%clk 0:02:49]} 6. O-O {[%clk 0:02:52]}  Nc6 {[%clk 0:02:48]} 7. d3 {[%clk 0:02:52]}  e5 {[%clk 0:02:46]} 8. Bg5 {[%clk 0:02:52]}  h6 {[%clk 0:02:46]} 9. Bxf6 {[%clk 0:02:52]}  Bxf6 {[%clk 0:02:46]} 10. Nd5 {[%clk 0:02:53]}  Bg7 {[%clk 0:02:47]} 11. Rb1 {[%clk 0:02:54]}  a5 {[%clk 0:02:46]} 12. a3 {[%clk 0:02:53]}  a4 {[%clk 0:02:45]} 13. Nc3 {[%clk 0:02:52]}  Bd7 {[%clk 0:02:32]} 14. Nxa4 {[%clk 0:02:52]}  Nd4 {[%clk 0:02:32]} 15. Nc3 {[%clk 0:02:51]}  f5 {[%clk 0:02:31]} 16. e3 {[%clk 0:02:48]}  Ne6 {[%clk 0:02:30]} 17. Qc2 {[%clk 0:02:47]}  f4 {[%clk 0:02:28]} 18. Rbe1 {[%clk 0:02:42]}  fxg3 {[%clk 0:02:16]} 19. fxg3 {[%clk 0:02:41]}  c6 {[%clk 0:02:15]} 20. Qe2 {[%clk 0:02:38]}  Kh7 {[%clk 0:02:11]} 21. Nh4 {[%clk 0:02:35]}  Qb6 {[%clk 0:02:06]} 22. Be4 {[%clk 0:02:33]}  Rxf1+ {[%clk 0:01:59]} 23. Rxf1 {[%clk 0:02:33]}  Nf8 {[%clk 0:01:58]} 24. Nd1 {[%clk 0:02:23]}  Qd8 {[%clk 0:01:44]} 25. Rf7 {[%clk 0:02:18]}  Qe8 {[%clk 0:01:39]} 26. Qf3 {[%clk 0:02:06]}  Bg4 {[%clk 0:01:36]} 27. Rxg7+ {[%clk 0:02:00]}  Kxg7 {[%clk 0:01:36]} 28. Qxg4 {[%clk 0:02:00]}  Rd8 {[%clk 0:01:28]} 29. Nc3 {[%clk 0:01:55]}  b5 {[%clk 0:01:19]} 30. cxb5 {[%clk 0:01:53]}  d5 {[%clk 0:01:18]} 31. Bg2 {[%clk 0:01:45]}  d4 {[%clk 0:01:16]} 32. Bxc6 {[%clk 0:01:27]}  Qf7 {[%clk 0:00:47]} 33. exd4 {[%clk 0:01:26]}  Rxd4 {[%clk 0:00:46]} 34. Qe2 {[%clk 0:01:21]}  Qf6 {[%clk 0:00:39]} 35. Nf3 {[%clk 0:01:20]}  Rd6 {[%clk 0:00:32]} 36. Qxe5 {[%clk 0:01:19]}  Rxd3 {[%clk 0:00:31]} 37. Qxf6+ {[%clk 0:01:19]}  Kxf6 {[%clk 0:00:32]} 38. Be4 {[%clk 0:01:14]}  Rd8 {[%clk 0:00:28]} 39. b6 {[%clk 0:01:14]}  Ne6 {[%clk 0:00:26]} 40. b7 {[%clk 0:01:13]}  Nc5 {[%clk 0:00:26]} 41. Bc6 {[%clk 0:01:13]}  Rb8 {[%clk 0:00:22]} 42. b4 {[%clk 0:01:13]}  Nxb7 {[%clk 0:00:22]} 43. Bxb7 {[%clk 0:01:11]}  Rxb7 {[%clk 0:00:22]} 44. b5 {[%clk 0:01:11]}  Ke6 {[%clk 0:00:21]} 45. a4 {[%clk 0:01:10]}  Kd6 {[%clk 0:00:20]} 46. a5 {[%clk 0:01:07]}  Kc5 {[%clk 0:00:20]} 47. a6 {[%clk 0:01:07]}  Rb8 {[%clk 0:00:19]} 48. Ne5 {[%clk 0:01:05]}  Ra8 {[%clk 0:00:15]} 49. Nd7+ {[%clk 0:00:58]}  Kd6 {[%clk 0:00:13]} 50. Nb6 {[%clk 0:00:57]}  Rb8 {[%clk 0:00:14]} 51. a7 {[%clk 0:00:57]} 1-0


[Site "https://www.chess.com"]

[Event "Titled Tuesday Blitz October 11 Early 2022"]
[White "Vargas, Mauricio"]
[Black "Huber, Benedikt"]
[WhiteFideId "4404572"]
[BlackFideId "12923583"]
[WhiteElo "2025"]
[BlackElo "2199"]
[Result "0-1"]
[Round "04"]
[TimeControl "180+1"]
[Date "2022.10.12"]
[WhiteClock "0:00:15"]
[BlackClock "0:01:23"]

1. e4 {[%clk 0:01:57]}  c5 {[%clk 0:02:44]} 2. Nc3 {[%clk 0:01:33]}  e6 {[%clk 0:02:42]} 3. f4 {[%clk 0:01:32]}  a6 {[%clk 0:02:42]} 4. Nf3 {[%clk 0:01:25]}  d5 {[%clk 0:02:41]} 5. e5 {[%clk 0:01:22]}  Nc6 {[%clk 0:02:40]} 6. g4 {[%clk 0:01:19]}  f6 {[%clk 0:02:36]} 7. Bg2 {[%clk 0:01:17]}  fxe5 {[%clk 0:02:36]} 8. Nxe5 {[%clk 0:01:17]}  Nxe5 {[%clk 0:02:34]} 9. fxe5 {[%clk 0:01:14]}  Qh4+ {[%clk 0:02:34]} 10. Kf1 {[%clk 0:01:13]}  Nh6 {[%clk 0:02:30]} 11. h3 {[%clk 0:01:11]}  Be7 {[%clk 0:02:30]} 12. d3 {[%clk 0:01:11]}  O-O+ {[%clk 0:02:30]} 13. Kg1 {[%clk 0:01:00]}  Qf2+ {[%clk 0:02:20]} 14. Kh2 {[%clk 0:00:56]}  Bh4 {[%clk 0:02:07]} 15. Rf1 {[%clk 0:00:51]}  Qg3+ {[%clk 0:01:54]} 16. Kh1 {[%clk 0:00:51]}  Bd7 {[%clk 0:01:52]} 17. Bd2 {[%clk 0:00:32]}  Rxf1+ {[%clk 0:01:41]} 18. Qxf1 {[%clk 0:00:31]}  Rf8 {[%clk 0:01:41]} 19. Qg1 {[%clk 0:00:27]}  Qxe5 {[%clk 0:01:41]} 20. Re1 {[%clk 0:00:21]}  Bxe1 {[%clk 0:01:40]} 21. Bxe1 {[%clk 0:00:21]}  Nf7 {[%clk 0:01:35]} 22. Nd1 {[%clk 0:00:21]}  Ng5 {[%clk 0:01:35]} 23. Bh4 {[%clk 0:00:19]}  Nf3 {[%clk 0:01:34]} 24. Qf1 {[%clk 0:00:16]}  Nxh4 {[%clk 0:01:33]} 25. Qe1 {[%clk 0:00:13]}  Nxg2 {[%clk 0:01:32]} 26. Kxg2 {[%clk 0:00:14]}  Qxe1 {[%clk 0:01:23]} 27. Nf2 {[%clk 0:00:15]}  Qxf2+ {[%clk 0:01:23]} 0-1


[Site "https://www.chess.com"]

[Event "Titled Tuesday Blitz October 11 Early 2022"]
[White "Veleshnja, Zino"]
[Black "De Souza, Cristiano Gomes"]
[WhiteFideId "4701313"]
[BlackFideId "2151758"]
[WhiteElo "2167"]
[BlackElo "2068"]
[Result "1-0"]
[Round "04"]
[TimeControl "180+1"]
[Date "2022.10.12"]
[WhiteClock "0:01:23"]
[BlackClock "0:02:10"]

1. d4 {[%clk 0:03:00]}  Nf6 {[%clk 0:02:58]} 2. c4 {[%clk 0:03:01]}  g6 {[%clk 0:02:58]} 3. Nc3 {[%clk 0:03:01]}  d6 {[%clk 0:02:58]} 4. e4 {[%clk 0:03:00]}  Bg7 {[%clk 0:02:59]} 5. Be2 {[%clk 0:03:01]}  O-O {[%clk 0:02:59]} 6. Be3 {[%clk 0:03:01]}  e5 {[%clk 0:02:59]} 7. d5 {[%clk 0:03:01]}  Nbd7 {[%clk 0:02:59]} 8. h4 {[%clk 0:02:58]}  a6 {[%clk 0:02:56]} 9. h5 {[%clk 0:02:56]}  Nc5 {[%clk 0:02:55]} 10. h6 {[%clk 0:02:48]}  Bh8 {[%clk 0:02:54]} 11. Qc2 {[%clk 0:02:48]}  a5 {[%clk 0:02:54]} 12. Nf3 {[%clk 0:02:44]}  b6 {[%clk 0:02:52]} 13. Nd2 {[%clk 0:02:38]}  Bd7 {[%clk 0:02:51]} 14. f3 {[%clk 0:02:38]}  Nh5 {[%clk 0:02:48]} 15. Rxh5 {[%clk 0:02:28]}  gxh5 {[%clk 0:02:47]} 16. O-O-O {[%clk 0:02:29]}  f5 {[%clk 0:02:46]} 17. exf5 {[%clk 0:02:26]}  Bxf5 {[%clk 0:02:46]} 18. Nde4 {[%clk 0:02:26]}  Nxe4 {[%clk 0:02:42]} 19. fxe4 {[%clk 0:02:24]}  Bg4 {[%clk 0:02:42]} 20. Rh1 {[%clk 0:02:13]}  Bf6 {[%clk 0:02:35]} 21. Bxg4 {[%clk 0:01:53]}  hxg4 {[%clk 0:02:24]} 22. Qd1 {[%clk 0:01:50]}  Qd7 {[%clk 0:02:23]} 23. Ne2 {[%clk 0:01:50]}  Kh8 {[%clk 0:02:22]} 24. Ng3 {[%clk 0:01:50]}  Rg8 {[%clk 0:02:21]} 25. Rh5 {[%clk 0:01:38]}  Rg6 {[%clk 0:02:16]} 26. Rf5 {[%clk 0:01:29]}  Rag8 {[%clk 0:02:14]} 27. Qf1 {[%clk 0:01:26]}  Bg5 {[%clk 0:02:10]} 28. Bxg5 {[%clk 0:01:25]}  Rxg5 {[%clk 0:02:10]} 29. Rxg5 {[%clk 0:01:23]} 1-0


[Site "https://www.chess.com"]

[Event "Titled Tuesday Blitz October 11 Early 2022"]
[White "Vokhidov, Shamsiddin"]
[Black "Martinez Alcantara, Jose Eduardo"]
[WhiteFideId "14204223"]
[BlackFideId "3805662"]
[WhiteElo "2619"]
[BlackElo "2703"]
[Result "1-0"]
[Round "04"]
[TimeControl "180+1"]
[Date "2022.10.11"]
[WhiteClock "0:00:12"]
[BlackClock "0:00:03"]

1. e4 {[%clk 0:03:00]}  e5 {[%clk 0:02:57]} 2. Nf3 {[%clk 0:03:00]}  Nf6 {[%clk 0:02:56]} 3. Nc3 {[%clk 0:03:01]}  Nc6 {[%clk 0:02:56]} 4. d4 {[%clk 0:03:01]}  exd4 {[%clk 0:02:57]} 5. Nxd4 {[%clk 0:03:01]}  Bb4 {[%clk 0:02:57]} 6. Nxc6 {[%clk 0:03:01]}  bxc6 {[%clk 0:02:58]} 7. Bd3 {[%clk 0:03:02]}  O-O {[%clk 0:02:59]} 8. O-O {[%clk 0:03:02]}  Re8 {[%clk 0:02:56]} 9. Bg5 {[%clk 0:03:01]}  h6 {[%clk 0:02:52]} 10. Bh4 {[%clk 0:03:01]}  Be7 {[%clk 0:02:52]} 11. e5 {[%clk 0:02:56]}  Nd5 {[%clk 0:02:52]} 12. Bxe7 {[%clk 0:02:53]}  Qxe7 {[%clk 0:02:53]} 13. Nxd5 {[%clk 0:02:45]}  cxd5 {[%clk 0:02:54]} 14. Re1 {[%clk 0:02:43]}  Rb8 {[%clk 0:02:22]} 15. b3 {[%clk 0:02:43]}  Rb6 {[%clk 0:02:17]} 16. Qf3 {[%clk 0:02:15]}  Re6 {[%clk 0:02:07]} 17. Qxd5 {[%clk 0:02:10]}  Rxe5 {[%clk 0:02:07]} 18. Rxe5 {[%clk 0:02:05]}  Qxe5 {[%clk 0:02:08]} 19. Qxe5 {[%clk 0:02:06]}  Rxe5 {[%clk 0:02:09]} 20. f4 {[%clk 0:02:02]}  Re7 {[%clk 0:02:02]} 21. Kf2 {[%clk 0:02:01]}  g6 {[%clk 0:01:59]} 22. a4 {[%clk 0:01:58]}  Kf8 {[%clk 0:01:51]} 23. a5 {[%clk 0:01:58]}  c5 {[%clk 0:01:49]} 24. Bc4 {[%clk 0:01:48]}  Re4 {[%clk 0:01:30]} 25. g3 {[%clk 0:01:39]}  Ke7 {[%clk 0:01:30]} 26. Rd1 {[%clk 0:01:16]}  Bb7 {[%clk 0:01:30]} 27. Bxf7 {[%clk 0:01:14]}  Kxf7 {[%clk 0:01:30]} 28. Rxd7+ {[%clk 0:01:12]}  Re7 {[%clk 0:01:28]} 29. Rd6 {[%clk 0:01:11]}  Be4 {[%clk 0:01:27]} 30. c3 {[%clk 0:01:06]}  Rb7 {[%clk 0:01:19]} 31. Ke3 {[%clk 0:00:55]}  Bf5 {[%clk 0:01:19]} 32. Rc6 {[%clk 0:00:53]}  Rxb3 {[%clk 0:01:19]} 33. Rxc5 {[%clk 0:00:53]}  Ke6 {[%clk 0:01:13]} 34. Kd4 {[%clk 0:00:48]}  Ra3 {[%clk 0:01:10]} 35. Rc6+ {[%clk 0:00:48]}  Kd7 {[%clk 0:01:06]} 36. Ra6 {[%clk 0:00:49]}  Ra2 {[%clk 0:01:02]} 37. Rxa7+ {[%clk 0:00:48]}  Kc6 {[%clk 0:01:03]} 38. g4 {[%clk 0:00:47]}  Bxg4 {[%clk 0:00:55]} 39. Ra6+ {[%clk 0:00:47]}  Kd7 {[%clk 0:00:53]} 40. Rxg6 {[%clk 0:00:47]}  h5 {[%clk 0:00:54]} 41. a6 {[%clk 0:00:46]}  Be6 {[%clk 0:00:46]} 42. a7 {[%clk 0:00:42]}  Ke7 {[%clk 0:00:41]} 43. f5 {[%clk 0:00:38]}  Bf7 {[%clk 0:00:41]} 44. Rb6 {[%clk 0:00:18]}  Rxa7 {[%clk 0:00:40]} 45. c4 {[%clk 0:00:17]}  Ra1 {[%clk 0:00:33]} 46. c5 {[%clk 0:00:16]}  Rd1+ {[%clk 0:00:33]} 47. Ke4 {[%clk 0:00:17]}  Rc1 {[%clk 0:00:29]} 48. Rb7+ {[%clk 0:00:17]}  Kf6 {[%clk 0:00:28]} 49. Rb6+ {[%clk 0:00:17]}  Kg5 {[%clk 0:00:28]} 50. c6 {[%clk 0:00:17]}  Be8 {[%clk 0:00:21]} 51. Kd5 {[%clk 0:00:17]}  Kxf5 {[%clk 0:00:20]} 52. Kd6 {[%clk 0:00:17]}  Bf7 {[%clk 0:00:08]} 53. c7 {[%clk 0:00:15]}  Be6 {[%clk 0:00:08]} 54. Rb5+ {[%clk 0:00:13]}  Kf6 {[%clk 0:00:09]} 55. Rxh5 {[%clk 0:00:13]}  Rd1+ {[%clk 0:00:07]} 56. Kc6 {[%clk 0:00:13]}  Rc1+ {[%clk 0:00:06]} 57. Rc5 {[%clk 0:00:13]}  Ra1 {[%clk 0:00:04]} 58. Kb7 {[%clk 0:00:13]}  Rb1+ {[%clk 0:00:04]} 59. Kc6 {[%clk 0:00:13]}  Ke7 {[%clk 0:00:04]} 60. Rc2 {[%clk 0:00:12]}  Bd7+ {[%clk 0:00:03]} 61. Kd5 {[%clk 0:00:12]}  Bc8 {[%clk 0:00:04]} 62. Kc6 {[%clk 0:00:12]}  Re1 {[%clk 0:00:03]} 63. Rd2 {[%clk 0:00:12]}  Re6+ {[%clk 0:00:04]} 64. Kc5 {[%clk 0:00:12]}  Bb7 {[%clk 0:00:04]} 65. Rb2 {[%clk 0:00:10]}  Rc6+ {[%clk 0:00:03]} 66. Kd4 {[%clk 0:00:11]}  Rxc7 {[%clk 0:00:03]} 67. Ke5 {[%clk 0:00:12]} 1-0


[Site "https://www.chess.com"]

[Event "Titled Tuesday Blitz October 11 Early 2022"]
[White "Winterberg, Lukas"]
[Black "Liu, Xiangyi"]
[WhiteFideId "24622702"]
[BlackFideId "8605718"]
[WhiteElo "2349"]
[BlackElo "2323"]
[Result "0-1"]
[Round "04"]
[TimeControl "180+1"]
[Date "2022.10.12"]
[WhiteClock "0:01:41"]
[BlackClock "0:01:25"]

1. d4 {[%clk 0:03:00]}  Nf6 {[%clk 0:02:59]} 2. Nf3 {[%clk 0:03:01]}  g6 {[%clk 0:02:59]} 3. c4 {[%clk 0:03:01]}  Bg7 {[%clk 0:02:59]} 4. Nc3 {[%clk 0:03:02]}  d5 {[%clk 0:03:00]} 5. cxd5 {[%clk 0:03:03]}  Nxd5 {[%clk 0:03:01]} 6. e4 {[%clk 0:03:04]}  Nxc3 {[%clk 0:03:01]} 7. bxc3 {[%clk 0:03:05]}  O-O {[%clk 0:03:01]} 8. Be2 {[%clk 0:03:05]}  c5 {[%clk 0:03:02]} 9. O-O {[%clk 0:03:06]}  Nd7 {[%clk 0:03:01]} 10. Be3 {[%clk 0:03:05]}  Nf6 {[%clk 0:03:01]} 11. Qc2 {[%clk 0:02:57]}  Qc7 {[%clk 0:02:59]} 12. e5 {[%clk 0:02:47]}  Nd5 {[%clk 0:02:57]} 13. Bd2 {[%clk 0:02:46]}  cxd4 {[%clk 0:02:55]} 14. Nxd4 {[%clk 0:02:43]}  Bxe5 {[%clk 0:02:52]} 15. Nf3 {[%clk 0:02:40]}  Nxc3 {[%clk 0:02:43]} 16. Bd3 {[%clk 0:02:37]}  Ne2+ {[%clk 0:02:40]} 17. Kh1 {[%clk 0:02:36]}  Qxc2 {[%clk 0:02:41]} 18. Bxc2 {[%clk 0:02:37]}  Bxa1 {[%clk 0:02:28]} 19. Rxa1 {[%clk 0:02:38]}  Bg4 {[%clk 0:02:29]} 20. Re1 {[%clk 0:02:33]}  Bxf3 {[%clk 0:02:28]} 21. gxf3 {[%clk 0:02:34]}  Nd4 {[%clk 0:02:29]} 22. Be4 {[%clk 0:02:28]}  Rfd8 {[%clk 0:01:55]} 23. Bb4 {[%clk 0:02:21]}  Rd7 {[%clk 0:01:53]} 24. Kg2 {[%clk 0:02:17]}  Rc8 {[%clk 0:01:42]} 25. a3 {[%clk 0:01:56]}  b6 {[%clk 0:01:38]} 26. Rb1 {[%clk 0:01:49]}  Nc2 {[%clk 0:01:24]} 27. Rc1 {[%clk 0:01:41]}  Ne3+ {[%clk 0:01:24]} 28. fxe3 {[%clk 0:01:41]}  Rxc1 {[%clk 0:01:25]} 0-1


[Site "https://www.chess.com"]

[Event "Titled Tuesday Blitz October 11 Early 2022"]
[White "Wirig, Anthony"]
[Black "Chernomordik, Pavel"]
[WhiteFideId "615013"]
[BlackFideId "2804530"]
[WhiteElo "2474"]
[BlackElo "2217"]
[Result "1-0"]
[Round "04"]
[TimeControl "180+1"]
[Date "2022.10.12"]
[WhiteClock "0:00:11"]
[BlackClock "0:00:11"]

1. d4 {[%clk 0:02:57]}  g6 {[%clk 0:02:59]} 2. e4 {[%clk 0:02:56]}  Bg7 {[%clk 0:02:59]} 3. Nc3 {[%clk 0:02:56]}  d6 {[%clk 0:02:58]} 4. Be3 {[%clk 0:02:56]}  a6 {[%clk 0:02:58]} 5. h4 {[%clk 0:02:56]}  h6 {[%clk 0:02:57]} 6. a4 {[%clk 0:02:52]}  b6 {[%clk 0:02:57]} 7. Bd3 {[%clk 0:02:43]}  c5 {[%clk 0:02:49]} 8. d5 {[%clk 0:02:40]}  Nf6 {[%clk 0:02:45]} 9. f3 {[%clk 0:02:35]}  e6 {[%clk 0:02:43]} 10. Bc4 {[%clk 0:02:31]}  e5 {[%clk 0:02:37]} 11. Qd2 {[%clk 0:02:25]}  Nh5 {[%clk 0:02:31]} 12. Nge2 {[%clk 0:02:16]}  f5 {[%clk 0:02:28]} 13. exf5 {[%clk 0:02:14]}  gxf5 {[%clk 0:02:22]} 14. g4 {[%clk 0:02:11]}  fxg4 {[%clk 0:02:17]} 15. fxg4 {[%clk 0:02:12]}  Bxg4 {[%clk 0:02:17]} 16. O-O-O {[%clk 0:01:58]}  Nd7 {[%clk 0:02:16]} 17. Rdg1 {[%clk 0:01:50]}  Ndf6 {[%clk 0:02:06]} 18. Bd3 {[%clk 0:01:37]}  Qd7 {[%clk 0:01:38]} 19. Rh2 {[%clk 0:01:14]}  O-O-O {[%clk 0:01:30]} 20. Bxa6+ {[%clk 0:01:12]}  Kb8 {[%clk 0:01:30]} 21. Bb5 {[%clk 0:01:03]}  Qc8 {[%clk 0:01:26]} 22. a5 {[%clk 0:00:51]}  bxa5 {[%clk 0:01:21]} 23. Na4 {[%clk 0:00:51]}  Bxe2 {[%clk 0:00:52]} 24. Qxe2 {[%clk 0:00:26]}  Rhg8 {[%clk 0:00:37]} 25. Bc6 {[%clk 0:00:24]}  Ka7 {[%clk 0:00:33]} 26. Rhg2 {[%clk 0:00:16]}  Qc7 {[%clk 0:00:19]} 27. Rg6 {[%clk 0:00:13]}  Nf4 {[%clk 0:00:17]} 28. Bxf4 {[%clk 0:00:12]}  exf4 {[%clk 0:00:17]} 29. Qf3 {[%clk 0:00:09]}  Rdf8 {[%clk 0:00:13]} 30. Nc3 {[%clk 0:00:10]}  Nd7 {[%clk 0:00:12]} 31. Nb5+ {[%clk 0:00:09]}  Kb6 {[%clk 0:00:11]} 32. Nxc7 {[%clk 0:00:10]}  Kxc7 {[%clk 0:00:11]} 33. Rxg7 {[%clk 0:00:11]} 1-0


[Site "https://www.chess.com"]

[Event "Titled Tuesday Blitz October 11 Early 2022"]
[White "Yaniuk, Volodymyr"]
[Black "Delorme, Alban"]
[WhiteFideId "14133083"]
[BlackFideId "623636"]
[WhiteElo "2141"]
[BlackElo "2197"]
[Result "1-0"]
[Round "04"]
[TimeControl "180+1"]
[Date "2022.10.12"]
[WhiteClock "0:02:19"]
[BlackClock "0:01:33"]

1. e4 {[%clk 0:03:00]}  c5 {[%clk 0:03:00]} 2. Nc3 {[%clk 0:02:56]}  Nc6 {[%clk 0:02:59]} 3. Nf3 {[%clk 0:02:56]}  e5 {[%clk 0:02:51]} 4. Bc4 {[%clk 0:02:54]}  g6 {[%clk 0:02:49]} 5. O-O {[%clk 0:02:53]}  Bg7 {[%clk 0:02:49]} 6. d3 {[%clk 0:02:53]}  Nge7 {[%clk 0:02:50]} 7. Ng5 {[%clk 0:02:51]}  O-O {[%clk 0:02:47]} 8. Qf3 {[%clk 0:02:50]}  Nd4 {[%clk 0:02:34]} 9. Bxf7+ {[%clk 0:02:29]}  Kh8 {[%clk 0:02:35]} 10. Qh3 {[%clk 0:02:27]}  h6 {[%clk 0:02:35]} 11. Bb3 {[%clk 0:02:25]}  d5 {[%clk 0:01:59]} 12. Qh4 {[%clk 0:02:21]}  Nxb3 {[%clk 0:01:53]} 13. axb3 {[%clk 0:02:21]}  d4 {[%clk 0:01:38]} 14. Nd5 {[%clk 0:02:19]}  Nxd5 {[%clk 0:01:37]} 15. Nf7+ {[%clk 0:02:19]}  Kh7 {[%clk 0:01:33]} 16. Nxd8 {[%clk 0:02:19]} 1-0


[Site "https://www.chess.com"]

[Event "Titled Tuesday Blitz October 11 Early 2022"]
[White "Zaksaite, Salomeja"]
[Black "Lehtosaari, Mauri"]
[WhiteFideId "12801496"]
[BlackFideId "501999"]
[WhiteElo "2094"]
[BlackElo "2498"]
[Result "0-1"]
[Round "04"]
[TimeControl "180+1"]
[Date "2022.10.12"]
[WhiteClock "0:00:01"]
[BlackClock "0:00:15"]

1. e4 {[%clk 0:03:00]}  c5 {[%clk 0:02:59]} 2. Nf3 {[%clk 0:03:00]}  e6 {[%clk 0:02:58]} 3. g3 {[%clk 0:02:59]}  Nf6 {[%clk 0:02:57]} 4. Qe2 {[%clk 0:02:45]}  Nc6 {[%clk 0:02:55]} 5. c3 {[%clk 0:02:44]}  d5 {[%clk 0:02:52]} 6. d3 {[%clk 0:02:41]}  b6 {[%clk 0:02:49]} 7. e5 {[%clk 0:02:31]}  Nd7 {[%clk 0:02:49]} 8. Bg2 {[%clk 0:02:31]}  Ba6 {[%clk 0:02:38]} 9. O-O {[%clk 0:02:28]}  Qc7 {[%clk 0:02:37]} 10. Re1 {[%clk 0:02:27]}  Be7 {[%clk 0:02:33]} 11. Nbd2 {[%clk 0:02:22]}  Rc8 {[%clk 0:02:25]} 12. Nf1 {[%clk 0:02:21]}  d4 {[%clk 0:02:20]} 13. c4 {[%clk 0:02:19]}  b5 {[%clk 0:02:20]} 14. b3 {[%clk 0:02:09]}  bxc4 {[%clk 0:02:09]} 15. bxc4 {[%clk 0:02:08]}  h6 {[%clk 0:02:08]} 16. h4 {[%clk 0:02:07]}  Rb8 {[%clk 0:02:02]} 17. N1h2 {[%clk 0:02:05]}  Qa5 {[%clk 0:01:56]} 18. Bf4 {[%clk 0:00:57]}  Rb6 {[%clk 0:01:14]} 19. h5 {[%clk 0:00:50]}  Bb7 {[%clk 0:01:01]} 20. Ng4 {[%clk 0:00:44]}  Qa3 {[%clk 0:00:52]} 21. Rab1 {[%clk 0:00:24]}  Nb4 {[%clk 0:00:50]} 22. Rb3 {[%clk 0:00:07]}  Qxa2 {[%clk 0:00:46]} 23. Rb2 {[%clk 0:00:04]}  Qa3 {[%clk 0:00:44]} 24. Rd1 {[%clk 0:00:03]}  Nc6 {[%clk 0:00:41]} 25. Rxb6 {[%clk 0:00:02]}  Nxb6 {[%clk 0:00:37]} 26. Nd2 {[%clk 0:00:02]}  Na4 {[%clk 0:00:36]} 27. Ne4 {[%clk 0:00:02]}  Nc3 {[%clk 0:00:35]} 28. Nxc3 {[%clk 0:00:02]}  dxc3 {[%clk 0:00:32]} 29. Rb1 {[%clk 0:00:02]}  Nd4 {[%clk 0:00:27]} 30. Qe1 {[%clk 0:00:02]}  Bxg2 {[%clk 0:00:22]} 31. Kxg2 {[%clk 0:00:01]}  c2 {[%clk 0:00:20]} 32. Rc1 {[%clk 0:00:01]}  Qxd3 {[%clk 0:00:18]} 33. Be3 {[%clk 0:00:01]}  Bg5 {[%clk 0:00:17]} 34. Bxd4 {[%clk 0:00:01]}  Bxc1 {[%clk 0:00:16]} 35. Qxc1 {[%clk 0:00:01]}  cxd4 {[%clk 0:00:15]} 0-1


[Site "https://www.chess.com"]